bitfinex/quotes_SOLUSD_20241107
["timestamp","ask_amount","ask_price","bid_price","bid_amount"]
[1730950675726,0.1,189.96,189.83,15.1469]
[1730950675727,12.20542057,189.9,189.83,12.20542057]
[1730950676445,12.20542057,189.89,189.82,12.20542057]
[1730950677046,12.20542057,189.88,189.81,12.20542057]
[1730950678656,12.20542057,189.89,189.82,12.20542057]
[1730950680061,0.12549,189.91,189.82,12.20542057]
[1730950680062,12.20542057,189.88,189.82,12.20542057]
[1730950680636,12.20542057,189.89,189.82,12.20542057]
[1730950680965,12.20542057,189.88,189.82,12.20542057]
[1730950681136,12.20542057,189.88,189.81,12.20542057]
[1730950681337,12.20542057,189.87,189.81,12.20542057]
[1730950681535,12.20542057,189.85,189.78,12.20542057]
[1730950681745,12.20542057,189.79,189.7,15.9253]
[1730950681936,12.20542057,189.78,189.7,15.9253]
[1730950682141,12.20542057,189.79,189.72,12.20542057]
[1730950682349,45.771974,189.85,189.73,12.20542057]
[1730950682547,12.20542057,189.81,189.74,12.20542057]
[1730950683644,45.871974,189.85,189.73,12.20542057]
[1730950683645,12.20542057,189.8,189.73,12.20542057]
[1730950683836,12.20542057,189.79,189.72,12.20542057]
[1730950684035,12.20542057,189.78,189.71,12.20542057]
[1730950684234,12.20542057,189.78,189.67,6.5948]
[1730950684433,12.20542057,189.76,189.69,12.20542057]
[1730950684663,12.20542057,189.77,189.71,12.20542057]
[1730950685033,12.20542057,189.77,189.7,12.20542057]
[1730950685238,12.20542057,189.76,189.7,12.20542057]
[1730950685437,12.20542057,189.76,189.69,12.20542057]
[1730950685742,12.20542057,189.76,189.7,12.20542057]
[1730950686163,12.20542057,189.77,189.7,12.20542057]
[1730950686467,12.20542057,189.76,189.69,12.20542057]
[1730950687261,12.20542057,189.7,189.6,16.4511]
[1730950687564,12.33091057,189.75,189.62,12.20542057]
[1730950687565,12.20542057,189.69,189.62,12.20542057]
[1730950688150,12.20542057,189.67,189.61,12.20542057]
[1730950691571,12.20542057,189.67,189.6,12.20542057]
[1730950693363,158.62549,189.75,189.63,12.20542057]
[1730950693563,23.2011,189.81,189.74,12.20542057]
[1730950693770,23.2011,189.81,189.77,12.20542057]
[1730950693970,23.2011,189.81,189.76,12.20542057]
[1730950694271,23.2011,189.81,189.75,12.20542057]
[1730950694449,23.2011,189.81,189.65,6.7063]
[1730950694450,35.40652057,189.81,189.74,12.20542057]
[1730950694650,12.20542057,189.8,189.72,12.20542057]
[1730950695748,12.20542057,189.8,189.74,12.20542057]
[1730950696351,0.12549,189.8,189.74,12.20542057]
[1730950696566,6.6251,189.81,189.77,12.20542057]
[1730950696767,12.20542057,189.83,189.77,12.20542057]
[1730950697066,21.5786,189.85,189.79,12.20542057]
[1730950697263,12.20542057,189.84,189.77,12.20542057]
[1730950697579,19.53469012,189.84,189.77,19.53469012]
[1730950697867,25.85849012,189.85,189.78,19.53469012]
[1730950698064,6.3238,189.85,189.79,19.53469012]
[1730950698648,25.85849012,189.85,189.79,19.53469012]
[1730950699148,19.53469012,189.84,189.77,19.53469012]
[1730950699387,19.53469012,189.84,189.78,19.53469012]
[1730950699670,6.3238,189.85,189.79,19.53469012]
[1730950700044,19.53469012,189.84,189.77,19.53469012]
[1730950700252,25.85849012,189.85,189.78,19.53469012]
[1730950701348,15.2548,189.9,189.81,19.53469012]
[1730950701349,19.53469012,189.88,189.81,19.53469012]
[1730950701948,41.11329012,189.9,189.83,19.53469012]
[1730950702352,19.53469012,189.89,189.82,19.53469012]
[1730950703253,19.53469012,189.92,189.86,19.53469012]
[1730950703768,21.5786,189.95,189.82,19.53469012]
[1730950703769,19.53469012,189.89,189.82,19.53469012]
[1730950704474,19.53469012,189.86,189.8,20.0]
[1730950704665,19.53469012,189.83,189.76,19.53469012]
[1730950705162,19.53469012,189.82,189.75,35.25059012]
[1730950705470,19.53469012,189.81,189.74,19.53469012]
[1730950705670,19.53469012,189.81,189.75,19.53469012]
[1730950707387,19.53469012,189.8,189.73,19.53469012]
[1730950709684,19.53469012,189.78,189.72,19.53469012]
[1730950710157,19.53469012,189.84,189.77,19.53469012]
[1730950710357,41.51769012,189.85,189.79,19.53469012]
[1730950711866,41.51769012,189.85,189.78,19.53469012]
[1730950712179,19.53469012,189.84,189.77,19.53469012]
[1730950712564,19.53469012,189.83,189.76,19.53469012]
[1730950713982,19.53469012,189.81,189.74,19.53469012]
[1730950714171,19.53469012,189.77,189.7,35.25059012]
[1730950714374,22.083,189.85,189.53,309.29112143]
[1730950714375,19.53469012,189.72,189.66,19.53469012]
[1730950714572,19.53469012,189.72,189.65,35.78839012]
[1730950714888,19.53469012,189.71,189.65,19.53469012]
[1730950715064,19.53469012,189.7,189.63,26.12039012]
[1730950715264,19.53469012,189.69,189.63,19.53469012]
[1730950715662,19.53469012,189.69,189.62,19.53469012]
[1730950715883,19.53469012,189.67,189.6,19.53469012]
[1730950716383,19.53469012,189.67,189.61,19.53469012]
[1730950717572,19.53469012,189.66,189.6,19.53469012]
[1730950718081,19.53469012,189.68,189.61,19.53469012]
[1730950718289,19.53469012,189.67,189.61,19.53469012]
[1730950718674,19.53469012,189.68,189.61,19.53469012]
[1730950718984,19.53469012,189.67,189.61,19.53469012]
[1730950719180,19.53469012,189.67,189.6,19.53469012]
[1730950719877,19.53469012,189.67,189.61,19.53469012]
[1730950721067,19.53469012,189.68,189.61,19.53469012]
[1730950721383,19.53469012,189.7,189.63,19.53469012]
[1730950721564,19.53469012,189.7,189.64,19.53469012]
[1730950722464,19.53469012,189.71,189.64,19.53469012]
[1730950722666,0.12549,189.74,189.59,23.902374]
[1730950722667,19.53469012,189.7,189.63,19.53469012]
[1730950723083,19.53469012,189.71,189.64,19.53469012]
[1730950723291,0.12549,189.74,189.63,12.22716847]
[1730950723469,12.22716847,189.7,189.63,12.22716847]
[1730950723787,12.22716847,189.71,189.64,12.22716847]
[1730950724086,12.22716847,189.7,189.63,12.22716847]
[1730950724677,12.22716847,189.69,189.63,12.22716847]
[1730950725394,12.22716847,189.67,189.6,12.22716847]
[1730950725590,12.22716847,189.68,189.61,12.22716847]
[1730950727294,12.22716847,189.67,189.6,12.22716847]
[1730950729572,12.22716847,189.66,189.59,12.22716847]
[1730950730172,12.22716847,189.67,189.6,12.22716847]
[1730950731375,12.22716847,189.66,189.59,12.22716847]
[1730950731579,12.22716847,189.64,189.57,12.22716847]
[1730950732781,12.22716847,189.63,189.56,12.22716847]
[1730950733000,12.22716847,189.62,189.55,12.22716847]
[1730950734475,12.22716847,189.61,189.54,12.22716847]
[1730950735489,12.22716847,189.6,189.53,12.22716847]
[1730950736381,12.22716847,189.6,189.5,6.0183]
[1730950736382,12.22716847,189.59,189.49,20.0]
[1730950736582,12.22716847,189.59,189.52,12.22716847]
[1730950737388,12.22716847,189.58,189.51,12.22716847]
[1730950737597,12.22716847,189.57,189.51,12.22716847]
[1730950740596,12.22716847,189.58,189.51,12.22716847]
[1730950740903,12.22716847,189.6,189.53,12.22716847]
[1730950741207,12.22716847,189.6,189.54,12.22716847]
[1730950741381,12.22716847,189.59,189.53,12.22716847]
[1730950741786,12.22716847,189.57,189.51,12.22716847]
[1730950742501,12.22716847,189.55,189.49,12.22716847]
[1730950743804,12.22716847,189.54,189.48,12.22716847]
[1730950745212,23.776884,189.48,189.46,0.583521]
[1730950745388,36.00405247,189.47,189.46,0.583521]
[1730950745589,36.12954247,189.47,189.46,0.583521]
[1730950745790,12.35265847,189.47,189.46,0.583521]
[1730950746408,36.22954247,189.47,189.46,0.583521]
[1730950746889,36.32954247,189.47,189.46,0.583521]
[1730950747089,42.62274247,189.47,189.46,0.583521]
[1730950747703,42.52274247,189.47,189.46,0.583521]
[1730950748093,42.62274247,189.47,189.46,0.583521]
[1730950749594,42.72274247,189.47,189.46,0.583521]
[1730950749908,42.62274247,189.47,189.46,0.583521]
[1730950751790,42.52274247,189.47,189.46,0.583521]
[1730950751987,18.74585847,189.47,189.46,0.583521]
[1730950753310,24.24994272,189.47,189.46,0.583521]
[1730950754312,0.1,189.45,189.31,12.22716847]
[1730950754501,12.35265847,189.41,189.3,12.22716847]
[1730950755208,12.35265847,189.41,189.31,12.22716847]
[1730950755817,12.35265847,189.41,189.32,12.22716847]
[1730950756110,12.22716847,189.41,189.32,12.22716847]
[1730950756697,12.35265847,189.41,189.31,12.22716847]
[1730950757992,12.35265847,189.41,189.3,12.22716847]
[1730950758491,12.35265847,189.41,189.31,12.22716847]
[1730950762130,12.35265847,189.41,189.27,24.56843024]
[1730950762131,12.35265847,189.41,189.27,35.47738947]
[1730950762301,12.35265847,189.41,189.28,5.2831]
[1730950762302,12.22716847,189.32,189.28,5.2831]
[1730950762705,12.22716847,189.33,189.28,5.2831]
[1730950763124,12.22716847,189.32,189.28,5.2831]
[1730950763421,12.22716847,189.35,189.28,17.51026847]
[1730950763920,12.22716847,189.34,189.28,5.2831]
[1730950764319,12.22716847,189.33,189.28,5.2831]
[1730950764500,12.22716847,189.33,189.29,23.776884]
[1730950764698,12.22716847,189.33,189.28,23.776884]
[1730950765108,12.22716847,189.33,189.27,16.868121]
[1730950765507,12.22716847,189.35,189.29,12.22716847]
[1730950765811,5.5004116,189.38,189.3,23.776884]
[1730950765812,12.22716847,189.36,189.3,23.776884]
[1730950766210,5.5004116,189.38,189.3,23.776884]
[1730950766211,12.22716847,189.35,189.3,23.776884]
[1730950766424,12.22716847,189.35,189.28,12.22716847]
[1730950766620,12.22716847,189.34,189.27,29.09528947]
[1730950767721,12.22716847,189.34,189.28,23.776884]
[1730950767926,12.22716847,189.33,189.28,23.776884]
[1730950768317,12.22716847,189.34,189.28,23.776884]
[1730950769506,12.22716847,189.33,189.28,23.776884]
[1730950772314,12.22716847,189.32,189.27,0.583521]
[1730950773930,12.22716847,189.33,189.27,0.583521]
[1730950774231,12.22716847,189.33,189.28,23.776884]
[1730950775031,12.22716847,189.33,189.27,24.360405]
[1730950775727,5.49169751,189.36,189.27,24.360405]
[1730950777813,12.22716847,189.34,189.28,23.776884]
[1730950778126,12.22716847,189.32,189.28,23.776884]
[1730950778318,12.22716847,189.33,189.28,23.776884]
[1730950779429,12.22716847,189.32,189.28,23.776884]
[1730950780234,12.22716847,189.33,189.28,23.776884]
[1730950780418,12.22716847,189.35,189.28,36.00405247]
[1730950781527,12.22716847,189.34,189.28,23.776884]
[1730950782011,12.22716847,189.35,189.28,36.00405247]
[1730950784119,5.50292147,189.34,189.28,36.00405247]
[1730950785437,12.22716847,189.33,189.28,23.776884]
[1730950785937,12.22716847,189.32,189.28,23.776884]
[1730950787036,5.50292147,189.34,189.27,0.583521]
[1730950787037,12.22716847,189.29,189.27,0.583521]
[1730950787332,12.22716847,189.28,189.27,0.583521]
[1730950787732,12.22716847,189.29,189.27,0.583521]
[1730950788416,12.22716847,189.3,189.27,0.583521]
[1730950789760,12.22716847,189.29,189.27,0.583521]
[1730950790638,5.50292147,189.34,189.27,0.583521]
[1730950790639,12.22716847,189.28,189.27,0.583521]
[1730950791424,7.86101335,189.28,189.27,0.583521]
[1730950792620,7.86101335,189.29,189.27,0.583521]
[1730950794238,7.86101335,189.28,189.27,0.583521]
[1730950794439,7.86101335,189.29,189.27,0.583521]
[1730950794839,7.86101335,189.28,189.27,0.583521]
[1730950795440,24.22721335,189.28,189.27,0.583521]
[1730950796425,24.35270335,189.28,189.27,0.583521]
[1730950797429,24.22721335,189.28,189.27,0.583521]
[1730950799441,28.65074694,189.28,189.27,0.583521]
[1730950800740,12.28454694,189.28,189.27,0.583521]
[1730950802630,12.28454694,189.29,189.27,0.583521]
[1730950803731,5.49690455,189.31,189.27,0.583521]
[1730950803934,12.28454694,189.33,189.27,0.583521]
[1730950804135,12.28454694,189.32,189.27,0.583521]
[1730950805644,5.49827089,189.35,189.27,0.583521]
[1730950805645,12.28454694,189.33,189.27,0.583521]
[1730950806230,12.28454694,189.33,189.27,12.86806794]
[1730950806835,12.28454694,189.34,189.28,12.28454694]
[1730950807044,12.28454694,189.34,189.28,36.06143094]
[1730950809259,17.7888421,189.35,189.3,23.776884]
[1730950810856,5.50429516,189.35,189.3,36.06143094]
[1730950811354,5.50429516,189.35,189.34,36.06143094]
[1730950811559,12.28454694,189.42,189.34,36.06143094]
[1730950811740,12.28454694,189.41,189.35,12.28454694]
[1730950811945,12.28454694,189.4,189.34,12.28454694]
[1730950812659,12.28454694,189.41,189.36,12.28454694]
[1730950813239,12.28454694,189.41,189.35,12.28454694]
[1730950813549,12.28454694,189.42,189.35,12.28454694]
[1730950813858,12.28454694,189.41,189.35,12.28454694]
[1730950814156,12.28454694,189.41,189.34,12.28454694]
[1730950814337,12.28454694,189.39,189.33,12.28454694]
[1730950814744,12.28454694,189.4,189.34,23.776884]
[1730950814938,12.28454694,189.4,189.34,12.28454694]
[1730950815145,12.28454694,189.39,189.33,36.06143094]
[1730950815840,12.28454694,189.4,189.34,12.28454694]
[1730950816037,5.5030197,189.43,189.39,12.28454694]
[1730950816458,6.1228,189.5,189.38,12.28454694]
[1730950816459,12.28454694,189.45,189.38,12.28454694]
[1730950816855,5.5031934,189.44,189.38,12.28454694]
[1730950817237,12.28454694,189.45,189.38,12.28454694]
[1730950817456,12.28454694,189.45,189.39,12.28454694]
[1730950817663,12.28454694,189.45,189.38,12.28454694]
[1730950817833,12.28454694,189.44,189.38,23.776884]
[1730950818156,12.28454694,189.43,189.38,23.776884]
[1730950818460,12.28454694,189.43,189.37,23.776884]
[1730950818851,12.28454694,189.41,189.35,12.28454694]
[1730950819660,12.28454694,189.42,189.35,12.28454694]
[1730950820841,12.28454694,189.42,189.36,23.776884]
[1730950821057,12.28454694,189.44,189.38,23.776884]
[1730950821566,5.50347415,189.48,189.38,23.776884]
[1730950821567,12.28454694,189.43,189.38,23.776884]
[1730950821752,12.28454694,189.44,189.38,36.06143094]
[1730950821953,12.28454694,189.45,189.39,12.28454694]
[1730950822354,12.28454694,189.43,189.38,23.776884]
[1730950823081,12.28454694,189.43,189.37,23.776884]
[1730950823254,12.28454694,189.42,189.37,23.776884]
[1730950823768,12.28454694,189.43,189.37,23.776884]
[1730950823949,12.28454694,189.44,189.37,36.06143094]
[1730950824158,12.28454694,189.44,189.39,23.776884]
[1730950824352,5.50347415,189.48,189.39,23.776884]
[1730950824553,12.28454694,189.46,189.41,23.776884]
[1730950824746,12.28454694,189.44,189.41,23.776884]
[1730950825052,12.28454694,189.45,189.41,23.776884]
[1730950825560,12.28454694,189.45,189.4,23.776884]
[1730950826160,12.28454694,189.45,189.39,23.776884]
[1730950826571,12.28454694,189.44,189.39,23.776884]
[1730950827577,12.28454694,189.44,189.38,23.776884]
[1730950827862,12.28454694,189.45,189.38,36.06143094]
[1730950828069,5.50347415,189.48,189.39,12.28454694]
[1730950828269,5.50347415,189.48,189.45,12.28454694]
[1730950828450,5.50347415,189.48,189.44,12.28454694]
[1730950828643,12.28454694,189.48,189.42,12.28454694]
[1730950828844,12.28454694,189.46,189.4,23.776884]
[1730950829064,12.28454694,189.45,189.4,23.776884]
[1730950829268,12.28454694,189.43,189.4,23.776884]
[1730950829441,12.28454694,189.44,189.4,23.776884]
[1730950829876,12.28454694,189.44,189.35,21.9808]
[1730950829877,12.28454694,189.43,189.36,12.28454694]
[1730950830163,10.88261892,189.52,189.35,34.1437448]
[1730950830164,12.1629448,189.41,189.35,34.1437448]
[1730950831244,12.1629448,189.41,189.35,27.9490448]
[1730950831852,12.1629448,189.41,189.36,23.776884]
[1730950834488,12.1629448,189.39,189.36,23.776884]
[1730950834783,12.1629448,189.38,189.33,23.776884]
[1730950835282,12.1629448,189.37,189.31,7.78764356]
[1730950835461,7.78764356,189.37,189.31,7.78764356]
[1730950835667,7.78764356,189.35,189.27,0.583521]
[1730950835854,7.78764356,189.35,189.28,7.78764356]
[1730950836055,7.78764356,189.35,189.29,7.78764356]
[1730950836878,7.78764356,189.35,189.3,23.776884]
[1730950837261,15.5205,189.4,189.3,23.776884]
[1730950837573,12.17082972,189.32,189.27,0.583521]
[1730950837879,12.17082972,189.31,189.27,0.583521]
[1730950839085,12.17082972,189.29,189.27,0.583521]
[1730950840580,12.17082972,189.28,189.27,0.583521]
[1730950841973,28.6830949,189.35,189.27,0.583521]
[1730950842176,12.17082972,189.32,189.27,0.583521]
[1730950844691,12.17082972,189.32,189.28,23.776884]
[1730950845290,12.17082972,189.31,189.28,23.776884]
[1730950845471,12.17082972,189.29,189.27,0.583521]
[1730950845672,12.17082972,189.28,189.27,0.583521]
[1730950847070,12.17082972,189.29,189.27,0.583521]
[1730950847266,12.17082972,189.3,189.27,0.583521]
[1730950848272,12.17082972,189.29,189.27,0.583521]
[1730950849771,12.17082972,189.28,189.27,0.583521]
[1730950857388,7.7960807,189.28,189.27,0.583521]
[1730950857889,5.50596384,189.33,189.27,0.583521]
[1730950857890,7.7960807,189.3,189.27,0.583521]
[1730950858411,7.7960807,189.29,189.27,0.583521]
[1730950859103,7.7960807,189.3,189.27,0.583521]
[1730950859285,12.17708708,189.3,189.27,0.583521]
[1730950859805,12.17708708,189.31,189.27,0.583521]
[1730950859990,5.48360913,189.29,189.28,23.776884]
[1730950860191,12.17708708,189.31,189.28,23.776884]
[1730950860388,5.48337256,189.3,189.28,23.776884]
[1730950862887,17.66045964,189.3,189.28,23.776884]
[1730950863210,12.17708708,189.29,189.27,0.583521]
[1730950863714,12.17708708,189.28,189.27,0.583521]
[1730950864912,17.66045964,189.3,189.27,0.583521]
[1730950864913,12.17708708,189.29,189.27,0.583521]
[1730950865406,12.17708708,189.28,189.27,0.583521]
[1730950866206,12.17708708,189.29,189.27,0.583521]
[1730950866715,12.17708708,189.28,189.27,0.583521]
[1730950866906,12.17708708,189.29,189.27,0.583521]
[1730950867111,12.17708708,189.3,189.27,0.583521]
[1730950867490,5.48151258,189.3,189.27,0.583521]
[1730950867789,12.17708708,189.35,189.28,35.95397108]
[1730950868311,12.17708708,189.34,189.28,23.776884]
[1730950868918,5.49304982,189.37,189.28,23.776884]
[1730950868919,12.17708708,189.33,189.28,23.776884]
[1730950869209,12.17708708,189.32,189.28,23.776884]
[1730950869409,12.17708708,189.31,189.28,23.776884]
[1730950870201,12.17708708,189.3,189.28,23.776884]
[1730950870698,12.17708708,189.36,189.3,23.776884]
[1730950870895,12.17708708,189.35,189.3,23.776884]
[1730950871091,12.17708708,189.35,189.29,23.776884]
[1730950871598,12.17708708,189.36,189.29,35.95397108]
[1730950871812,17.6701369,189.37,189.31,23.776884]
[1730950872312,12.17708708,189.36,189.31,23.776884]
[1730950872495,12.17708708,189.35,189.3,23.776884]
[1730950872702,12.17708708,189.32,189.3,23.776884]
[1730950873427,12.17708708,189.32,189.27,0.583521]
[1730950873428,12.17708708,189.34,189.29,23.776884]
[1730950873607,12.17708708,189.35,189.29,23.776884]
[1730950873791,12.17708708,189.36,189.29,12.17708708]
[1730950874188,12.17708708,189.36,189.3,23.776884]
[1730950874593,5.49732596,189.37,189.3,23.776884]
[1730950874793,12.17708708,189.32,189.27,0.583521]
[1730950875113,12.17708708,189.31,189.27,0.583521]
[1730950875318,12.17708708,189.29,189.27,0.583521]
[1730950876814,12.17708708,189.28,189.27,0.583521]
[1730950878215,12.18409351,189.28,189.27,0.583521]
[1730950882112,12.18409351,189.29,189.27,0.583521]
[1730950882324,12.18409351,189.28,189.27,0.583521]
[1730950885327,7.79739973,189.28,189.27,0.583521]
[1730950885628,13.29783665,189.28,189.27,0.583521]
[1730950887912,13.29629108,189.28,189.27,0.583521]
[1730950888225,5.50043692,189.28,189.27,0.583521]
[1730950888432,7.79585416,189.31,189.27,0.583521]
[1730950888740,5.48944007,189.31,189.27,0.583521]
[1730950888907,5.48944007,189.31,189.28,23.776884]
[1730950889111,7.79585416,189.34,189.28,23.776884]
[1730950889327,13.2959291,189.34,189.28,23.776884]
[1730950890613,7.79585416,189.33,189.28,23.776884]
[1730950891011,13.2959291,189.34,189.28,23.776884]
[1730950891326,5.50007494,189.34,189.28,35.94936892]
[1730950891537,5.50007494,189.34,189.29,12.17248492]
[1730950891828,5.50007494,189.34,189.3,23.776884]
[1730950892024,17.67255986,189.34,189.3,23.776884]
[1730950892229,17.67255986,189.34,189.27,12.75600592]
[1730950892230,5.50007494,189.34,189.29,23.776884]
[1730950893019,17.67255986,189.34,189.29,23.776884]
[1730950894213,5.50007494,189.34,189.29,23.776884]
[1730950895531,17.67255986,189.34,189.29,23.776884]
[1730950896235,17.67255986,189.34,189.28,23.776884]
[1730950896526,0.12549,189.33,189.29,12.17248492]
[1730950896717,5.50007494,189.34,189.32,23.776884]
[1730950896918,0.12549,189.37,189.32,23.776884]
[1730950897124,5.48961117,189.36,189.32,35.94936892]
[1730950897339,12.17248492,189.41,189.35,23.776884]
[1730950897825,0.12549,189.4,189.35,23.776884]
[1730950898011,12.17248492,189.43,189.37,23.776884]
[1730950898214,17.66249312,189.44,189.37,35.94936892]
[1730950898618,0.12549,189.43,189.38,12.17248492]
[1730950898831,0.12549,189.43,189.39,23.776884]
[1730950899328,5.48925561,189.44,189.39,35.94936892]
[1730950899531,21.7546,189.52,189.42,12.17248492]
[1730950899836,0.12549,189.47,189.43,23.776884]
[1730950900127,0.12549,189.47,189.42,12.17248492]
[1730950900128,12.17248492,189.47,189.42,23.776884]
[1730950900627,12.17248492,189.47,189.41,23.776884]
[1730950901138,0.12549,189.46,189.41,23.776884]
[1730950902024,0.12549,189.42,189.39,23.776884]
[1730950903135,12.29797492,189.41,189.34,12.17248492]
[1730950903323,0.12549,189.41,189.35,12.17248492]
[1730950903520,0.12549,189.4,189.35,12.17248492]
[1730950904137,0.12549,189.4,189.36,23.776884]
[1730950904316,0.12549,189.41,189.36,23.776884]
[1730950904517,12.29797492,189.41,189.35,23.776884]
[1730950906121,0.12549,189.39,189.34,23.776884]
[1730950906522,0.12549,189.39,189.34,35.94936892]
[1730950906838,0.12549,189.4,189.34,35.94936892]
[1730950909244,12.17248492,189.41,189.34,35.94936892]
[1730950909245,0.12549,189.41,189.37,23.776884]
[1730950909628,0.12549,189.42,189.37,23.776884]
[1730950910529,12.17248492,189.44,189.37,35.94936892]
[1730950910734,17.64751069,189.45,189.39,23.776884]
[1730950910926,5.47502577,189.45,189.41,23.776884]
[1730950911246,12.17248492,189.48,189.43,23.776884]
[1730950911537,0.12549,189.47,189.43,23.776884]
[1730950912543,17.66219768,189.48,189.43,23.776884]
[1730950913128,0.12549,189.47,189.43,23.776884]
[1730950914830,0.12549,189.47,189.42,23.776884]
[1730950915619,12.17248492,189.43,189.32,6.2022]
[1730950915825,12.29797492,189.4,189.32,6.2022]
[1730950916043,12.29797492,189.4,189.33,28.74698492]
[1730950916427,12.29797492,189.4,189.29,0.1]
[1730950916428,12.17248492,189.35,189.29,12.17248492]
[1730950916630,0.12549,189.34,189.28,28.73668492]
[1730950917350,12.17248492,189.38,189.31,12.17248492]
[1730950917548,0.12549,189.37,189.31,12.17248492]
[1730950917844,12.29797492,189.37,189.31,12.17248492]
[1730950918147,0.12549,189.35,189.3,12.17248492]
[1730950918346,12.29797492,189.35,189.28,28.73668492]
[1730950918731,12.17248492,189.39,189.33,12.17248492]
[1730950919140,0.12549,189.38,189.33,12.17248492]
[1730950919344,0.12549,189.38,189.34,23.776884]
[1730950920257,0.12549,189.37,189.34,23.776884]
[1730950920925,0.12549,189.36,189.34,23.776884]
[1730950923146,0.12549,189.38,189.33,23.776884]
[1730950925356,12.29797492,189.37,189.32,23.776884]
[1730950925761,0.12549,189.37,189.32,23.776884]
[1730950926552,0.12549,189.37,189.32,35.94936892]
[1730950927232,12.29797492,189.38,189.32,35.94936892]
[1730950927735,0.12549,189.38,189.32,35.94936892]
[1730950933246,0.12549,189.38,189.34,23.776884]
[1730950934365,0.12549,189.36,189.33,23.776884]
[1730950934658,0.12549,189.36,189.32,23.776884]
[1730950934858,0.12549,189.37,189.32,31.5636271]
[1730950935046,0.12549,189.37,189.33,7.7867431]
[1730950935246,0.12549,189.37,189.34,23.776884]
[1730950935459,0.12549,189.38,189.34,23.776884]
[1730950937055,5.49438638,189.41,189.37,23.776884]
[1730950937353,0.12549,189.41,189.37,23.776884]
[1730950938345,7.9122331,189.41,189.36,23.776884]
[1730950938551,0.12549,189.38,189.36,23.776884]
[1730950939262,0.12549,189.38,189.34,23.776884]
[1730950940164,0.12549,189.38,189.33,23.776884]
[1730950940460,0.12549,189.37,189.33,23.776884]
[1730950940868,0.12549,189.37,189.31,7.7867431]
[1730950940869,0.12549,189.37,189.32,23.776884]
[1730950942059,0.12549,189.37,189.32,31.5636271]
[1730950942265,0.12549,189.37,189.32,23.776884]
[1730950942442,0.12549,189.36,189.32,23.776884]
[1730950942768,0.12549,189.36,189.32,31.5636271]
[1730950942941,0.12549,189.37,189.32,31.5636271]
[1730950944746,0.12549,189.41,189.32,31.5636271]
[1730950945058,0.12549,189.38,189.32,31.5636271]
[1730950945867,0.12549,189.37,189.32,31.5636271]
[1730950947345,0.12549,189.41,189.32,31.5636271]
[1730950947660,5.48978814,189.42,189.32,31.5636271]
[1730950947661,0.12549,189.38,189.32,31.5636271]
[1730950949069,0.12549,189.38,189.33,7.7867431]
[1730950949275,7.7867431,189.4,189.34,31.5636271]
[1730950949578,7.7867431,189.41,189.34,31.5636271]
[1730950949951,5.48978814,189.42,189.37,23.776884]
[1730950950168,5.48978814,189.42,189.38,7.7867431]
[1730950950470,5.48838555,189.43,189.39,23.776884]
[1730950950650,5.48838555,189.43,189.41,23.776884]
[1730950950851,7.7867431,189.46,189.41,23.776884]
[1730950951063,0.12549,189.45,189.41,23.776884]
[1730950951857,13.26426321,189.47,189.41,31.5636271]
[1730950952270,13.26426321,189.47,189.36,15.2299]
[1730950952271,5.47752011,189.47,189.43,23.776884]
[1730950953082,0.12549,189.46,189.43,23.776884]
[1730950954781,13.26426321,189.47,189.36,15.1299]
[1730950954782,0.12549,189.43,189.37,7.7867431]
[1730950955074,7.9122331,189.43,189.37,7.7867431]
[1730950956178,7.9122331,189.43,189.38,23.776884]
[1730950956559,0.12549,189.46,189.38,23.776884]
[1730950956749,7.7867431,189.46,189.4,31.5636271]
[1730950956953,5.47752011,189.47,189.38,23.776884]
[1730950956954,13.26426321,189.47,189.41,31.5636271]
[1730950957170,13.26426321,189.47,189.41,7.7867431]
[1730950957375,0.12549,189.46,189.42,31.5636271]
[1730950957570,0.12549,189.46,189.42,23.776884]
[1730950957775,0.12549,189.46,189.42,31.5636271]
[1730950957981,10.73860346,189.5,189.44,23.776884]
[1730950958274,5.61982058,189.49,189.44,31.5636271]
[1730950958971,5.61982058,189.49,189.44,23.776884]
[1730950959674,5.61982058,189.49,189.44,35.929822]
[1730950959978,5.61982058,189.49,189.45,12.152938]
[1730950960160,5.61982058,189.49,189.46,23.776884]
[1730950960359,5.61982058,189.49,189.46,35.929822]
[1730950960360,5.49433058,189.49,189.46,35.929822]
[1730950960569,12.152938,189.55,189.49,23.776884]
[1730950960774,0.12549,189.53,189.49,23.776884]
[1730950960958,12.152938,189.55,189.49,23.776884]
[1730950961157,12.152938,189.53,189.48,23.776884]
[1730950961372,6.5477,189.56,189.47,23.776884]
[1730950961373,12.152938,189.52,189.47,23.776884]